[Event "European Womens-ch 2025"]
[Site "Rhodes"]
[Date "2025.04.08"]
[Round "8.41"]
[White "Mamedjarova, Turkan"]
[Black "Sivanandan, Bodhana"]
[Result "1-0"]
[Annotator "RC"]
[ECO "A07"]
[WhiteElo "2206"]
[BlackElo "2073"]
[PlyCount "157"]
[EventDate "2025.03.29"]
[EventType "swiss"]
[EventCountry "GRE"]
[SourceTitle "playchess.com"]
[Source "ChessBase"]
[SourceQuality "1"]
[TimeControl "40/5400+30:1800+30"]

1. Nf3 {[%emt 1:31:00]} d5 {[%emt 0:03:22]} 2. g3 {[%emt 0:00:00]} Nf6 {[%emt 0:00:32]} 3. Bg2 {[%emt 0:00:00]} Bf5 {[%emt 0:00:44]} 4. O-O {[%emt 0:00:00]} c6 {[%emt 0:00:53]} 5. d3 {[%emt 0:00:00]} e6 {[%emt 0:00:38]} 6. Nbd2 {[%emt 0:00:00]} Be7 {[%emt 0:00:38]} 7. b3 {[%emt 0:00:00]} O-O {[%emt 0:01:39]} 8. Bb2 {[%emt 0:00:00]} Nbd7 {[%emt 0:01:47]} 9. Qe1 {[%emt 0:00:00]} h6 {[%emt 0:02:43]} 10. e4 {[%emt 0:00:00]} dxe4 {[%emt 0:01:08]} 11. dxe4 {[%emt 0:00:00]} Bh7 {[%emt 0:01:16]} 12. Qe2 {[%emt 0:00:00]} Qc7 {[%emt 0:02:46]} 13. Ne1 {[%emt 0:00:00]} Rad8 {[%emt 0:04:17]} 14. Nd3 {[%emt 0:00:00]} Rfe8 {[%emt 0:01:40]} 15. a4 {[%emt 0:00:00]} Nf8 {[%emt 0:06:52]} 16. h4 {[%emt 0:00:00]} N6d7 {[%emt 0:03:55]} 17. Nc4 {[%emt 0:00:00]} Bf6 {[%emt 0:03:13]} 18. e5 {[%emt 0:00:00]} Be7 {[%emt 0:00:51]} 19. Rfd1 {[%emt 0:00:00]} Nc5 {[%emt 0:08:09]} 20. Nf4 {[%emt 0:00:00]} Rxd1+ {[%emt 0:08:52]} 21. Rxd1 {[%emt 0:00:00]} Rd8 {[%emt 0:00:08]} 22. Nh5 {[%emt 0:00:00]} Rxd1+ {[%emt 0:10:34]} 23. Qxd1 {[%emt 0:00:00]} Bg6 {[%emt 0:00:31]} 24. Nf4 {[%emt 0:00:00]} Qd7 {[%emt 0:06:27]} 25. Nd6 {[%emt 0:00:00]} b6 {[%emt 0:00:47]} 26. Nxg6 {[%emt 0:00:00]} Nxg6 {[%emt 0:01:21]} 27. f4 {[%emt 0:00:00]} Nf8 {[%emt 0:03:14]} 28. Bf3 {[%emt 0:00:00]} f5 {[%emt 0:07:47]} 29. Kg2 {[%emt 0:00:00]} Na6 {[%emt 0:01:40]} 30. h5 {[%emt 0:00:00]} Nc7 {[%emt 0:00:57]} 31. c4 {[%emt 0:00:00]} Ne8 {[%emt 0:01:21]} 32. Nxf5 {[%emt 0:00:00]} exf5 {[%emt 0:04:41]} 33. Qxd7 {[%emt 0:00:00]} Nxd7 {[%emt 0:00:08]} 34. Bxc6 {[%emt 0:00:00]} Nc5 {[%emt 0:00:59]} 35. Bxe8 {[%emt 0:00:00]} Nxb3 {[%emt 0:01:11]} 36. Bg6 {[%emt 0:00:00]} Nc5 {[%emt 0:01:04]} 37. Ba3 {[%emt 0:00:00]} Kf8 {[%emt 0:01:10]} 38. Bxc5 {[%emt 0:00:00]} Bxc5 {[%emt 0:00:17]} 39. Bxf5 {[%emt 0:00:00]} Ke7 {[%emt 0:01:48]} 40. Kf3 {[%emt 0:00:00]} Bb4 {[%emt 0:00:00]} 41. Be4 {[%emt 0:00:00]} Be1 {[%emt 0:10:00]} 42. Bd5 {[%emt 0:00:00]} Bc3 {[%emt 0:03:45]} 43. Ke4 {[%emt 0:00:34]} Be1 {[%emt 0:01:06]} 44. g4 {[%emt 0:00:15]} Bd2 {[%emt 0:02:01]} 45. Kf5 {[%emt 0:00:10]} Bc1 {[%emt 0:01:35]} 46. g5 {[%emt 0:00:39]} hxg5 {[%emt 0:00:23]} 47. fxg5 {[%emt 0:00:01]} Kf8 {[%emt 0:01:47]} 48. a5 {[%emt 0:06:53]} Bd2 {[%emt 0:06:12]} 49. a6 {[%emt 0:00:11]} Bc1 {[%emt 0:01:07]} 50. g6 {[%emt 0:05:57]} Ke7 {[%emt 0:01:16]} 51. Bb7 {[%emt 0:00:51]} Kd7 {[%emt 0:04:12]} 52. Ke4 {[%emt 0:00:27]} Bh6 {[%emt 0:02:16]} 53. Kd5 {[%emt 0:00:20]} Bg5 {[%emt 0:01:03]} 54. Bc6+ {[%emt 0:00:10]} Ke7 {[%emt 0:01:01]} 55. Ba4 {[%emt 0:00:39]} Bf4 {[%emt 0:01:13]} 56. Bd1 {[%emt 0:00:16]} Kd7 {[%emt 0:02:01]} 57. Bg4+ {[%emt 0:00:12]} Ke7 {[%emt 0:00:20]} 58. Bh3 {[%emt 0:00:09]} Bg3 {[%emt 0:01:26]} 59. e6 {[%emt 0:06:38]} Bf4 {[%emt 0:01:07]} 60. Kc6 {[%emt 0:00:10]} Be3 {[%emt 0:01:01]} 61. Kb7 {[%emt 0:00:30]} Kf6 {[%emt 0:00:50]} 62. Bg4 {[%emt 0:02:09]} Bc5 {[%emt 0:01:02]} 63. Kc6 {[%emt 0:03:01]} Be7 {[%emt 0:01:58]} 64. Kd7 {[%emt 0:00:18]} Bc5 {[%emt 0:00:06]} 65. h6 {[%emt 0:01:54]} gxh6 {[%emt 0:00:15]} 66. g7 {[%emt 0:00:20]} Kxg7 {[%emt 0:00:09]} 67. e7 {[%emt 0:00:03]} Bxe7 {[%emt 0:00:09]} 68. Kxe7 {[%emt 0:00:01]} Kg6 {[%emt 0:00:17]} 69. Kd6 {[%emt 0:00:20]} h5 {[%emt 0:00:10]} 70. Bxh5+ {[%emt 0:00:45]} Kxh5 {[%emt 0:00:08]} 71. Kc6 {[%emt 0:00:18]} Kg6 {[%emt 0:00:06]} 72. Kb7 {[%emt 0:00:02]} Kf7 {[%emt 0:00:08]} 73. Kxa7 {[%emt 0:00:06]} Ke7 {[%emt 0:00:09]} 74. Kxb6 {[%emt 0:00:05]} Kd7 {[%emt 0:00:06]} 75. a7 {[%emt 0:00:06]} Kc8 {[%emt 0:00:03]} 76. a8=Q+ {[%emt 0:00:02]} Kd7 {[%emt 0:00:09]} 77. Qe4 {[%emt 0:00:07]} Kd8 {[%emt 0:00:05]} 78. Qh7 {[%emt 0:00:08]} Kc8 {[%emt 0:00:05]} 79. Qc7# {[%emt 0:00:05]} 1-0

[Event "European Womens-ch 2025"]
[Site "Rhodes"]
[Date "2025.04.08"]
[Round "8.42"]
[White "Donghvani, Nia"]
[Black "Dwilewicz, Katarzyna"]
[Result "1-0"]
[Annotator "RC"]
[ECO "B46"]
[WhiteElo "2025"]
[BlackElo "2203"]
[PlyCount "137"]
[EventDate "2025.03.29"]
[EventType "swiss"]
[EventCountry "GRE"]
[SourceTitle "playchess.com"]
[Source "ChessBase"]
[SourceQuality "1"]
[TimeControl "40/5400+30:1800+30"]

1. e4 {[%emt 0:00:15]} c5 {[%emt 0:00:06]} 2. Nf3 {[%emt 0:00:05]} e6 {[%emt 0:00:05]} 3. d4 {[%emt 0:00:02]} cxd4 {[%emt 0:00:06]} 4. Nxd4 {[%emt 0:00:03]} Nc6 {[%emt 0:00:06]} 5. Nc3 {[%emt 0:00:06]} a6 {[%emt 0:00:06]} 6. Be3 {[%emt 0:00:16]} Nf6 {[%emt 0:00:36]} 7. a3 {[%emt 0:07:47]} d5 {[%emt 0:10:38]} 8. exd5 {[%emt 0:02:42]} exd5 {[%emt 0:01:17]} 9. Qe2 {[%emt 0:09:49]} Be7 {[%emt 0:02:27]} 10. O-O-O {[%emt 0:01:37]} O-O {[%emt 0:00:41]} 11. h3 {[%emt 0:01:31]} Qc7 {[%emt 0:21:57]} 12. g4 {[%emt 0:04:02]} Rd8 {[%emt 0:08:52]} 13. Bg2 {[%emt 0:12:38]} Nxd4 {[%emt 0:03:34]} 14. Bxd4 {[%emt 0:00:29]} Be6 {[%emt 0:00:09]} 15. Kb1 {[%emt 0:10:41]} Rac8 {[%emt 0:01:26]} 16. Rhf1 {[%emt 0:09:18]} Ne4 {[%emt 0:13:24]} 17. Bxe4 {[%emt 0:00:40]} dxe4 {[%emt 0:00:05]} 18. Qxe4 {[%emt 0:00:03]} b5 {[%emt 0:04:44]} 19. Qe5 {[%emt 0:09:19]} Qxe5 {[%emt 0:00:27]} 20. Bxe5 {[%emt 0:00:01]} f6 {[%emt 0:00:21]} 21. Bd4 {[%emt 0:01:20]} h5 {[%emt 0:06:39]} 22. gxh5 {[%emt 0:04:59]} Bxh3 {[%emt 0:00:11]} 23. Rg1 {[%emt 0:00:53]} Kf7 {[%emt 0:01:22]} 24. Ne2 {[%emt 0:02:31]} Bf5 {[%emt 0:00:17]} 25. Rc1 {[%emt 0:02:44]} Rc4 {[%emt 0:05:03]} 26. Be3 {[%emt 0:02:30]} a5 {[%emt 0:01:54]} 27. b3 {[%emt 0:02:01]} Rcc8 {[%emt 0:06:27]} 28. Kb2 {[%emt 0:00:49]} Bc5 {[%emt 0:01:53]} 29. Ng3 {[%emt 0:04:30]} Bh7 {[%emt 0:00:35]} 30. Nf1 {[%emt 0:03:37]} Bd6 {[%emt 0:04:57]} 31. f4 {[%emt 0:00:32]} Re8 {[%emt 0:00:10]} 32. Rg4 {[%emt 0:03:38]} Re4 {[%emt 0:00:59]} 33. Rd1 {[%emt 0:00:34]} Rc6 {[%emt 0:00:59]} 34. Rd2 {[%emt 0:00:34]} Re8 {[%emt 0:01:57]} 35. Bd4 {[%emt 0:01:56]} Bf5 {[%emt 0:00:52]} 36. Rh4 {[%emt 0:00:33]} Bb8 {[%emt 0:01:19]} 37. Ne3 {[%emt 0:01:21]} Bh7 {[%emt 0:00:20]} 38. h6 {[%emt 0:01:08]} g6 {[%emt 0:00:31]} 39. Nd5 {[%emt 0:01:02]} Rd8 {[%emt 0:00:37]} 40. Nc3 {[%emt 0:00:00]} b4 {[%emt 0:00:00]} 41. axb4 {[%emt 0:03:18]} axb4 {[%emt 0:01:05]} 42. Ne4 {[%emt 0:09:45]} Re8 {[%emt 0:08:02]} 43. Nc5 {[%emt 0:11:49]} Rd6 {[%emt 0:02:45]} 44. c3 {[%emt 0:00:52]} Red8 {[%emt 0:04:34]} 45. Nb7 {[%emt 0:02:40]} bxc3+ 46. Kxc3 {[%emt 0:00:02]} Rc8+ {[%emt 0:02:09]} 47. Nc5 {[%emt 0:00:25]} Rd5 {[%emt 0:00:36]} 48. b4 {[%emt 0:00:41]} Rcd8 {[%emt 0:04:23]} 49. Nb3 {[%emt 0:02:29]} Bd6 {[%emt 0:05:27]} 50. Ra2 {[%emt 0:01:14]} Rd7 {[%emt 0:00:41]} 51. Ra6 {[%emt 0:01:38]} g5 {[%emt 0:02:20]} 52. fxg5 {[%emt 0:00:19]} fxg5 {[%emt 0:00:21]} 53. Rh1 {[%emt 0:00:50]} g4 {[%emt 0:00:56]} 54. Rf1+ {[%emt 0:00:17]} Rf5 {[%emt 0:02:27]} 55. Rxf5+ {[%emt 0:00:05]} Bxf5 {[%emt 0:00:01]} 56. Nc5 {[%emt 0:00:14]} Rd8 {[%emt 0:01:03]} 57. Ra7+ {[%emt 0:02:29]} Be7 {[%emt 0:01:56]} 58. Nd3 {[%emt 0:00:40]} Bxd3 {[%emt 0:01:52]} 59. Kxd3 {[%emt 0:00:33]} Ke6 {[%emt 0:00:30]} 60. Rxe7+ {[%emt 0:00:44]} Kxe7 {[%emt 0:00:01]} 61. h7 {[%emt 0:00:05]} g3 {[%emt 0:00:45]} 62. h8=Q {[%emt 0:00:01]} Rxh8 {[%emt 0:00:07]} 63. Bxh8 {[%emt 0:00:04]} g2 {[%emt 0:00:02]} 64. Bd4 {[%emt 0:00:04]} Kd6 {[%emt 0:00:03]} 65. Kc4 {[%emt 0:00:19]} Kc6 {[%emt 0:00:03]} 66. Bg1 {[%emt 0:00:17]} Kb7 {[%emt 0:00:04]} 67. Kb5 {[%emt 0:00:05]} Kc7 {[%emt 0:00:04]} 68. Ka6 {[%emt 0:00:25]} Kb8 {[%emt 0:00:05]} 69. b5 {[%emt 0:00:34]} 1-0

[Event "European Womens-ch 2025"]
[Site "Rhodes"]
[Date "2025.04.08"]
[Round "8.43"]
[White "Ter-Avetisjana, Agnesa Stepania"]
[Black "Prado Acebo, Ines"]
[Result "1-0"]
[Annotator "RC"]
[ECO "B51"]
[WhiteElo "2100"]
[BlackElo "2199"]
[PlyCount "109"]
[EventDate "2025.03.29"]
[EventType "swiss"]
[EventCountry "GRE"]
[SourceTitle "playchess.com"]
[Source "ChessBase"]
[SourceQuality "1"]
[TimeControl "40/5400+30:1800+30"]

1. e4 {[%emt 0:00:59]} c5 {[%emt 0:00:07]} 2. Nf3 {[%emt 0:00:04]} d6 {[%emt 0:00:07]} 3. Bb5+ {[%emt 0:00:05]} Nd7 {[%emt 0:00:07]} 4. O-O {[%emt 0:00:34]} a6 {[%emt 0:00:14]} 5. Bd3 {[%emt 0:00:05]} Ngf6 {[%emt 0:00:08]} 6. Re1 {[%emt 0:00:14]} g6 {[%emt 0:00:16]} 7. c3 {[%emt 0:15:44]} Bg7 {[%emt 0:00:08]} 8. Bc2 {[%emt 0:00:28]} O-O {[%emt 0:00:13]} 9. d4 {[%emt 0:00:23]} e5 {[%emt 0:00:10]} 10. dxc5 {[%emt 0:03:37]} Nxc5 {[%emt 0:05:35]} 11. Nbd2 {[%emt 0:10:31]} b5 {[%emt 0:06:38]} 12. b4 {[%emt 0:06:40]} Ne6 {[%emt 0:05:29]} 13. c4 {[%emt 0:00:27]} Qc7 {[%emt 0:10:02]} 14. Bd3 {[%emt 0:09:51]} Nf4 {[%emt 0:07:52]} 15. Bf1 {[%emt 0:00:12]} Bd7 {[%emt 0:01:18]} 16. Bb2 {[%emt 0:01:56]} Bc6 {[%emt 0:11:10]} 17. Rc1 {[%emt 0:03:40]} Qb7 {[%emt 0:03:09]} 18. g3 {[%emt 0:06:30]} Ne6 {[%emt 0:01:01]} 19. Bd3 {[%emt 0:00:01]} Nd7 {[%emt 0:12:57]} 20. Nb3 {[%emt 0:04:28]} bxc4 {[%emt 0:03:35]} 21. Na5 {[%emt 0:12:49]} Qxb4 {[%emt 0:01:34]} 22. Bc3 {[%emt 0:05:09]} Qa4 {[%emt 0:14:07]} 23. Bxc4 {[%emt 0:05:46]} Qxd1 {[%emt 0:01:11]} 24. Rcxd1 {[%emt 0:00:01]} Ba4 {[%emt 0:02:40]} 25. Rxd6 {[%emt 0:01:00]} Nec5 {[%emt 0:00:36]} 26. Bb4 {[%emt 0:09:38]} h6 {[%emt 0:01:35]} 27. Rxg6 {[%emt 0:01:22]} Rfc8 {[%emt 0:04:00]} 28. Rd6 {[%emt 0:01:12]} Bf8 {[%emt 0:00:23]} 29. Rd5 {[%emt 0:00:59]} Nd3 {[%emt 0:00:11]} 30. Bxd3 {[%emt 0:00:14]} Bxb4 {[%emt 0:00:06]} 31. Rb1 {[%emt 0:00:02]} Rab8 {[%emt 0:01:01]} 32. Nxe5 {[%emt 0:01:06]} Nc5 {[%emt 0:01:19]} 33. Nb3 {[%emt 0:00:34]} Nxd3 {[%emt 0:02:58]} 34. Nxd3 {[%emt 0:00:01]} Bf8 {[%emt 0:00:50]} 35. Rc1 {[%emt 0:00:52]} Re8 {[%emt 0:00:22]} 36. Nbc5 {[%emt 0:00:41]} Bc6 {[%emt 0:01:11]} 37. Nd7 {[%emt 0:00:15]} Bxd5 {[%emt 0:00:21]} 38. exd5 {[%emt 0:00:00]} Ba3 {[%emt 0:01:02]} 39. Rd1 {[%emt 0:00:27]} Rbd8 {[%emt 0:01:23]} 40. Nf6+ {[%emt 0:00:00]} Kf8 {[%emt 0:00:00]} 41. Nxe8 {[%emt 0:00:16]} Kxe8 {[%emt 0:00:16]} 42. Ne5 {[%emt 0:02:20]} Bd6 {[%emt 0:01:37]} 43. Nc6 {[%emt 0:05:22]} Rd7 {[%emt 0:00:18]} 44. Rb1 {[%emt 0:00:26]} Kf8 {[%emt 0:00:18]} 45. Kg2 {[%emt 0:11:40]} Kg7 {[%emt 0:01:19]} 46. Kf3 {[%emt 0:01:57]} Bc5 {[%emt 0:00:24]} 47. Ke4 {[%emt 0:00:30]} Bxf2 {[%emt 0:01:15]} 48. Ne5 {[%emt 0:03:28]} f5+ {[%emt 0:01:52]} 49. Kxf5 {[%emt 0:07:14]} Rxd5 {[%emt 0:00:02]} 50. Rb7+ {[%emt 0:00:09]} Kg8 {[%emt 0:00:43]} 51. Ke6 {[%emt 0:00:35]} Rd2 {[%emt 0:00:51]} 52. Ng4 {[%emt 0:00:52]} Re2+ {[%emt 0:00:47]} 53. Kf5 {[%emt 0:00:38]} Rxa2 {[%emt 0:00:32]} 54. Kg6 {[%emt 0:00:37]} Kf8 {[%emt 0:00:39]} 55. Nf6 {[%emt 0:00:12]} 1-0

[Event "European Womens-ch 2025"]
[Site "Rhodes"]
[Date "2025.04.08"]
[Round "8.44"]
[White "Stefanova, Antoaneta"]
[Black "Grapsa, Georgia"]
[Result "1/2-1/2"]
[Annotator "RC"]
[ECO "E14"]
[WhiteElo "2426"]
[BlackElo "2065"]
[PlyCount "103"]
[EventDate "2025.03.29"]
[EventType "swiss"]
[EventCountry "GRE"]
[SourceTitle "playchess.com"]
[Source "ChessBase"]
[SourceQuality "1"]
[TimeControl "40/5400+30:1800+30"]

1. d4 {[%emt 0:04:25]} Nf6 {[%emt 0:00:49]} 2. Nf3 {[%emt 0:00:08]} e6 {[%emt 0:00:29]} 3. e3 {[%emt 0:00:20]} b6 {[%emt 0:00:14]} 4. Bd3 {[%emt 0:01:04]} Bb7 {[%emt 0:00:34]} 5. O-O {[%emt 0:01:15]} c5 {[%emt 0:00:59]} 6. c4 {[%emt 0:04:20]} Be7 {[%emt 0:09:36]} 7. Nc3 {[%emt 0:02:30]} O-O {[%emt 0:04:41]} 8. d5 {[%emt 0:01:10]} exd5 {[%emt 0:01:16]} 9. cxd5 {[%emt 0:00:26]} Nxd5 {[%emt 0:02:04]} 10. Nxd5 {[%emt 0:06:52]} Bxd5 {[%emt 0:00:05]} 11. Bxh7+ {[%emt 0:01:49]} Kxh7 {[%emt 0:00:03]} 12. Qxd5 {[%emt 0:00:05]} Nc6 {[%emt 0:00:59]} 13. e4 {[%emt 0:13:18]} Nb4 {[%emt 0:08:04]} 14. Qf5+ {[%emt 0:07:20]} Kg8 {[%emt 0:00:47]} 15. Rd1 {[%emt 0:02:49]} Qe8 {[%emt 0:07:00]} 16. Bf4 {[%emt 0:05:38]} g6 {[%emt 0:14:11]} 17. Qh3 {[%emt 0:04:54]} f5 {[%emt 0:09:42]} 18. exf5 {[%emt 0:10:18]} Rxf5 {[%emt 0:00:50]} 19. Be5 {[%emt 0:01:11]} d5 {[%emt 0:18:09]} 20. a3 {[%emt 0:13:20]} Nc6 {[%emt 0:06:45]} 21. Rxd5 {[%emt 0:00:30]} Nxe5 {[%emt 0:01:41]} 22. Nxe5 {[%emt 0:00:30]} Rd8 {[%emt 0:02:20]} 23. Rxd8 {[%emt 0:05:17]} Bxd8 {[%emt 0:00:04]} 24. Ng4 {[%emt 0:00:41]} Bg5 {[%emt 0:03:33]} 25. Qd3 {[%emt 0:00:31]} Kg7 {[%emt 0:01:41]} 26. Rd1 {[%emt 0:01:07]} Qe6 {[%emt 0:01:25]} 27. Qc3+ {[%emt 0:03:21]} Kh7 {[%emt 0:00:13]} 28. h4 {[%emt 0:07:11]} Bxh4 {[%emt 0:02:32]} 29. Qh3 {[%emt 0:01:28]} Rh5 {[%emt 0:00:04]} 30. Qf3 {[%emt 0:00:43]} Rf5 {[%emt 0:00:37]} 31. Qh3 {[%emt 0:00:35]} Rh5 {[%emt 0:00:03]} 32. Qf3 {[%emt 0:00:28]} Rf5 {[%emt 0:00:04]} 33. Qd3 {[%emt 0:00:42]} Kg7 {[%emt 0:01:25]} 34. g3 {[%emt 0:00:34]} Rf7 {[%emt 0:01:11]} 35. Qc3+ {[%emt 0:00:35]} Bf6 {[%emt 0:00:24]} 36. Nxf6 {[%emt 0:00:14]} Qxf6 {[%emt 0:00:06]} 37. Qxf6+ {[%emt 0:00:31]} Rxf6 {[%emt 0:01:25]} 38. Rd7+ {[%emt 0:00:04]} Rf7 {[%emt 0:00:03]} 39. Rd5 {[%emt 0:01:11]} Rf3 {[%emt 0:01:40]} 40. Rd7+ {[%emt 0:00:00]} Kf6 {[%emt 0:00:00]} 41. Rxa7 {[%emt 0:10:52]} Rb3 {[%emt 0:01:59]} 42. a4 {[%emt 0:00:05]} Rxb2 {[%emt 0:00:42]} 43. a5 {[%emt 0:14:23]} bxa5 {[%emt 0:03:02]} 44. Rxa5 {[%emt 0:00:05]} Rc2 {[%emt 0:00:07]} 45. Kg2 {[%emt 0:01:08]} Kf5 {[%emt 0:03:49]} 46. Kf3 {[%emt 0:01:02]} Rc3+ {[%emt 0:05:30]} 47. Ke2 {[%emt 0:00:23]} g5 {[%emt 0:00:48]} 48. Kd2 {[%emt 0:00:23]} Rc4 {[%emt 0:00:17]} 49. Kd3 {[%emt 0:00:22]} Rc1 {[%emt 0:01:28]} 50. Kd2 {[%emt 0:00:23]} Rc4 {[%emt 0:00:04]} 51. Kd3 {[%emt 0:00:05]} Rc1 {[%emt 0:00:06]} 52. Kd2 {[%emt 0:03:29]} 1/2-1/2

[Event "European Womens-ch 2025"]
[Site "Rhodes"]
[Date "2025.04.08"]
[Round "8.45"]
[White "Vidic, Teja"]
[Black "Bochnickova, Simona"]
[Result "1-0"]
[Annotator "RC"]
[ECO "B51"]
[WhiteElo "2100"]
[BlackElo "2167"]
[PlyCount "107"]
[EventDate "2025.03.29"]
[EventType "swiss"]
[EventCountry "GRE"]
[SourceTitle "playchess.com"]
[Source "ChessBase"]
[SourceQuality "1"]
[TimeControl "40/5400+30:1800+30"]

1. e4 {[%emt 0:00:02]} c5 {[%emt 0:00:04]} 2. Nf3 {[%emt 0:00:05]} d6 {[%emt 0:00:03]} 3. Bb5+ {[%emt 0:00:06]} Nd7 {[%emt 0:00:05]} 4. O-O {[%emt 0:00:08]} a6 {[%emt 0:00:03]} 5. Bd3 {[%emt 0:00:06]} Ngf6 {[%emt 0:00:05]} 6. c3 {[%emt 0:00:06]} b5 {[%emt 0:00:06]} 7. a4 {[%emt 0:00:34]} Bb7 {[%emt 0:00:10]} 8. axb5 {[%emt 0:00:31]} axb5 {[%emt 0:00:05]} 9. Rxa8 {[%emt 0:00:05]} Qxa8 {[%emt 0:00:05]} 10. Bxb5 {[%emt 0:00:05]} Bxe4 {[%emt 0:00:10]} 11. c4 {[%emt 0:00:04]} Bxb1 {[%emt 0:00:43]} 12. d3 {[%emt 0:01:08]} g6 {[%emt 0:11:33]} 13. Bg5 {[%emt 0:13:08]} Bg7 {[%emt 0:00:06]} 14. Qxb1 {[%emt 0:00:05]} O-O {[%emt 0:07:19]} 15. Bxd7 {[%emt 0:01:53]} Nxd7 {[%emt 0:00:06]} 16. Bxe7 {[%emt 0:00:04]} Rb8 {[%emt 0:00:05]} 17. Bxd6 {[%emt 0:03:11]} Rxb2 {[%emt 0:00:09]} 18. Qe1 {[%emt 0:00:20]} Qc8 {[%emt 0:26:13]} 19. Qe3 {[%emt 0:12:05]} Rb6 {[%emt 0:02:43]} 20. Qf4 {[%emt 0:00:41]} Qb7 {[%emt 0:14:37]} 21. Re1 {[%emt 0:05:16]} Rb1 {[%emt 0:01:22]} 22. Qd2 {[%emt 0:16:04]} Qb3 {[%emt 0:04:13]} 23. Rf1 {[%emt 0:04:19]} Rxf1+ {[%emt 0:06:52]} 24. Kxf1 {[%emt 0:00:04]} Bc3 {[%emt 0:00:43]} 25. Qc1 {[%emt 0:03:15]} Bd4 {[%emt 0:08:07]} 26. Ke2 {[%emt 0:00:45]} Qb6 {[%emt 0:02:16]} 27. Nxd4 {[%emt 0:04:38]} Qxd6 {[%emt 0:00:09]} 28. Nf3 {[%emt 0:00:06]} Nf6 {[%emt 0:02:40]} 29. Qe3 {[%emt 0:02:42]} Qb6 {[%emt 0:03:53]} 30. h3 {[%emt 0:01:28]} Nh5 {[%emt 0:04:46]} 31. g4 {[%emt 0:05:21]} Ng7 {[%emt 0:00:05]} 32. Ng5 {[%emt 0:00:48]} Qb2+ {[%emt 0:02:28]} 33. Kf3 {[%emt 0:02:07]} Qf6+ {[%emt 0:02:08]} 34. Qf4 {[%emt 0:00:38]} Qc6+ {[%emt 0:00:52]} 35. Kg3 {[%emt 0:00:56]} Qb7 {[%emt 0:00:56]} 36. Qd6 {[%emt 0:03:17]} Qc8 {[%emt 0:00:03]} 37. Qe7 {[%emt 0:01:15]} Qb8+ {[%emt 0:01:08]} 38. f4 {[%emt 0:00:30]} Qf8 {[%emt 0:00:30]} 39. Qxf8+ {[%emt 0:00:30]} Kxf8 {[%emt 0:00:49]} 40. Nxh7+ {[%emt 0:00:00]} Ke7 {[%emt 0:00:30]} 41. Ng5 {[%emt 0:52:34]} f5 {[%emt 0:01:00]} 42. Kf3 {[%emt 0:00:00]} Ne8 {[%emt 0:03:06]} 43. gxf5 {[%emt 0:00:00]} gxf5 {[%emt 0:00:05]} 44. Ke3 {[%emt 0:00:00]} Kd6 {[%emt 0:02:13]} 45. d4 {[%emt 0:00:00]} Ng7 {[%emt 0:02:02]} 46. d5 {[%emt 0:00:00]} Kd7 {[%emt 0:08:15]} 47. Kd3 {[%emt 0:00:00]} Kd6 {[%emt 0:09:42]} 48. Kc3 {[%emt 0:00:00]} Nh5 {[%emt 0:00:18]} 49. Ne6 {[%emt 0:00:00]} Ng3 {[%emt 0:00:04]} 50. Kb3 {[%emt 0:00:00]} Ne4 {[%emt 0:06:02]} 51. Ng7 {[%emt 0:00:00]} Ng3 {[%emt 0:00:21]} 52. Ka4 {[%emt 0:00:00]} Ne2 {[%emt 0:00:41]} 53. Nxf5+ {[%emt 0:00:00]} Kc7 {[%emt 0:00:05]} 54. Ng7 {[%emt 0:00:00]} 1-0

[Event "European Womens-ch 2025"]
[Site "Rhodes"]
[Date "2025.04.08"]
[Round "8.46"]
[White "Chelushkina, Irina"]
[Black "Korenova, Martina"]
[Result "0-1"]
[Annotator "NA RC"]
[ECO "B07"]
[WhiteElo "2134"]
[BlackElo "2045"]
[PlyCount "56"]
[EventDate "2025.03.29"]
[EventType "swiss"]
[EventCountry "GRE"]
[SourceTitle "playchess.com"]
[Source "ChessBase"]
[SourceQuality "1"]
[TimeControl "40/5400+30:1800+30"]

1. g3 {[%emt 0:00:04]} g6 {[%emt 0:00:12]} 2. Bg2 {[%emt 0:00:05]} Bg7 {[%emt 0:00:06]} 3. d4 {[%emt 0:00:36]} Nf6 {[%emt 0:00:31]} 4. e4 {[%emt 0:00:27]} d6 {[%emt 0:00:12]} 5. Nc3 {[%emt 0:00:32]} O-O {[%emt 0:00:19]} 6. h3 {[%emt 0:01:09]} Nbd7 {[%emt 0:02:40]} 7. Nge2 {[%emt 0:00:25]} c5 {[%emt 0:01:35]} 8. d5 {[%emt 0:00:37]} Rb8 {[%emt 0:01:50]} 9. a4 {[%emt 0:00:10]} b6 {[%emt 0:01:04]} 10. g4 {[%emt 0:08:32]} a6 {[%emt 0:01:26]} 11. Ng3 {[%emt 0:00:07]} b5 {[%emt 0:01:01]} 12. axb5 {[%emt 0:00:26]} axb5 {[%emt 0:00:05]} 13. Nce2 {[%emt 0:00:14]} Nb6 {[%emt 0:01:12]} 14. O-O {[%emt 0:00:32]} Qc7 {[%emt 0:01:42]} 15. Nf4 {[%emt 0:05:09]} Bb7 {[%emt 0:07:09]} 16. h4 {[%emt 0:06:41]} Ra8 {[%emt 0:06:17]} 17. Rb1 {[%emt 0:00:52]} Ra2 {[%emt 0:06:47]} 18. g5 {[%emt 0:01:35]} Nfd7 {[%emt 0:02:22]} 19. h5 {[%emt 0:00:07]} Ne5 {[%emt 0:05:34]} 20. hxg6 {[%emt 0:02:40]} hxg6 {[%emt 0:00:09]} 21. Nf5 {[%emt 0:08:09]} gxf5 {[%emt 0:01:47]} 22. exf5 {[%emt 0:02:27]} Bc8 {[%emt 0:05:16]} 23. Bh3 {[%emt 0:02:08]} Qb7 {[%emt 0:03:51]} 24. b3 {[%emt 0:02:15]} Bd7 {[%emt 0:07:31]} 25. Kh2 {[%emt 0:17:52]} Qc8 {[%emt 0:04:05]} 26. f6 {[%emt 0:39:39]} Bxh3 {[%emt 0:05:11]} 27. Nxh3 {[%emt 0:00:00]} exf6 {[%emt 0:01:51]} 28. gxf6 {[%emt 0:00:00]} Ng4+ {[%emt 0:01:10]} 0-1